bitfinex/quotes_ETHUSD_20241120
["timestamp","ask_amount","ask_price","bid_price","bid_amount"]
[1732066847424,0.7879,3105.7,3105.1,3.09602014]
[1732066847753,0.7879,3105.7,3105.2,3.0]
[1732066847952,0.7879,3105.7,3105.3,0.05009624]
[1732066848257,0.782,3106.7,3105.4,0.09602014]
[1732066848258,0.7879,3106.0,3105.4,0.09602014]
[1732066848413,0.7879,3106.0,3105.4,0.40562215]
[1732066848613,0.7879,3106.0,3105.4,0.30960201]
[1732066848923,0.7879,3106.0,3105.5,0.09598709]
[1732066850163,0.7879,3106.0,3105.1,0.05008597]
[1732066850521,0.7879,3106.0,3105.2,0.41677926]
[1732066850742,0.7879,3106.0,3105.2,0.46685205]
[1732066850951,0.7979,3105.8,3105.2,0.41677926]
[1732066851267,0.0805023,3105.7,3105.2,0.09597926]
[1732066851742,0.0805023,3105.7,3105.1,3.0]
[1732066851927,0.0805023,3105.7,3105.3,0.09266531]
[1732066852127,0.08050383,3105.7,3105.2,0.09268507]
[1732066852361,0.08050383,3105.7,3105.1,3.0]
[1732066852565,0.7979,3105.6,3105.3,0.09268507]
[1732066852722,0.7979,3105.6,3105.1,3.0]
[1732066852927,0.7979,3105.6,3105.4,0.09268507]
[1732066853360,0.7979,3105.6,3104.8,3.3208]
[1732066853533,0.7979,3105.6,3105.5,0.09268507]
[1732066853860,0.7979,3105.6,3105.5,0.09269453]
[1732066854075,0.7979,3105.6,3104.8,0.3208]
[1732066854369,0.7979,3105.6,3104.9,0.09269453]
[1732066854660,0.7979,3105.6,3105.0,0.34134945]
[1732066855094,0.7979,3105.6,3105.1,0.09269453]
[1732066855463,0.7979,3105.6,3104.8,0.3208]
[1732066855811,0.7979,3105.6,3104.9,3.09269453]
[1732066856092,0.7979,3105.6,3105.0,3.0]
[1732066856803,0.7979,3105.6,3105.1,0.09269453]
[1732066857099,0.7979,3105.6,3105.2,0.30926945]
[1732066857656,0.7979,3106.4,3105.4,3.0]
[1732066857890,0.7979,3106.4,3105.5,3.0]
[1732066858061,0.7979,3106.4,3105.4,0.05006578]
[1732066858273,0.7979,3106.4,3105.5,3.0]
[1732066858482,0.7979,3106.4,3105.6,0.39768564]
[1732066859392,0.7979,3106.4,3105.6,0.09267906]
[1732066859961,0.7979,3106.4,3105.3,0.05006263]
[1732066860162,0.7979,3106.4,3105.7,0.09267906]
[1732066860472,0.7979,3106.4,3105.8,0.09265499]
[1732066860669,0.7979,3106.4,3105.2,1.117]
[1732066860670,0.08048901,3106.3,3105.2,1.117]
[1732066860876,0.7979,3106.2,3105.3,0.09265499]
[1732066861097,0.7979,3106.0,3105.3,3.0]
[1732066861276,0.7979,3106.0,3105.4,0.09266101]
[1732066861461,0.7979,3106.0,3105.0,0.05007942]
[1732066861662,0.7979,3106.0,3105.3,3.0]
[1732066861856,0.7979,3106.0,3105.4,0.39267564]
[1732066862103,0.7979,3106.0,3105.4,0.09267564]
[1732066862595,0.87839522,3105.9,3105.4,0.09267564]
[1732066862993,0.7979,3105.9,3105.4,0.09267564]
[1732066863196,0.7979,3105.9,3105.3,3.0]
[1732066863513,0.7979,3105.9,3105.4,0.3]
[1732066863719,0.7979,3105.9,3105.4,0.09267392]
[1732066864226,0.7979,3105.9,3104.8,0.37089685]
[1732066864428,0.7979,3105.9,3105.5,0.09267564]
[1732066864630,0.7979,3105.9,3104.8,0.37089685]
[1732066864934,0.7979,3105.9,3105.3,3.0]
[1732066865238,0.7979,3105.9,3105.3,3.3]
[1732066865416,0.7979,3105.9,3105.3,0.3]
[1732066865728,0.7979,3105.9,3105.4,0.09267564]
[1732066866834,0.7979,3105.9,3104.8,0.3208]
[1732066866994,0.7979,3105.9,3105.5,0.09267736]
[1732066867332,0.7979,3105.7,3104.7,0.3208]
[1732066867529,0.7979,3105.7,3104.7,0.37089663]
[1732066867694,0.7979,3105.7,3104.8,0.41347392]
[1732066868042,0.08050241,3106.3,3104.8,0.41347392]
[1732066868043,0.7979,3107.1,3104.9,1.44872801]
[1732066868192,0.87838862,3107.0,3105.0,0.05006356]
[1732066868388,0.87838862,3107.0,3105.1,1.117]
[1732066868389,3.21871,3106.9,3105.1,1.117]
[1732066868613,0.7979,3106.7,3105.5,3.0]
[1732066868824,0.08049084,3106.8,3105.5,3.0]
[1732066868825,0.7979,3106.5,3105.5,3.0]
[1732066869034,0.87839081,3106.4,3105.6,0.09267306]
[1732066869212,0.7979,3106.4,3105.6,0.09267306]
[1732066869831,0.7979,3106.4,3105.6,0.40194037]
[1732066871353,0.7667,3106.2,3105.6,0.40194037]
[1732066871660,0.7667,3106.2,3105.6,0.09267306]
[1732066872228,0.7667,3106.2,3105.2,0.37086882]
[1732066872542,0.7667,3106.2,3105.5,3.0]
[1732066872925,0.7667,3106.2,3105.6,3.0]
[1732066873124,0.7667,3106.2,3105.7,0.3]
[1732066873350,0.7667,3106.2,3105.6,3.87184898]
[1732066873541,0.7667,3106.2,3105.6,0.7792]
[1732066873723,0.7667,3106.2,3105.7,0.09264898]
[1732066874952,0.7667,3106.2,3105.4,1.1]
[1732066874953,0.7667,3106.2,3105.6,3.0]
[1732066875159,0.7667,3106.2,3105.8,0.09264898]
[1732066875371,0.7667,3106.2,3105.2,0.3208]
[1732066875667,0.7667,3106.2,3105.9,0.09264898]
[1732066875818,0.7667,3106.2,3105.2,0.3708679]
[1732066876166,0.7667,3106.2,3105.6,3.0]
[1732066876331,0.7667,3106.2,3105.7,0.3]
[1732066876736,0.7667,3106.2,3105.8,0.09264898]
[1732066877153,0.7667,3106.2,3105.6,3.0]
[1732066877333,0.7667,3106.2,3105.9,0.09264898]
[1732066877594,0.7667,3106.2,3105.2,0.3708679]
[1732066877901,0.7667,3106.2,3105.3,0.41344898]
[1732066878524,0.7667,3106.2,3105.6,3.0]
[1732066878814,0.7667,3106.2,3105.7,0.3]
[1732066879021,0.7667,3106.2,3105.7,0.39261424]
[1732066879379,0.7667,3106.2,3105.7,0.09261424]
[1732066879773,0.7667,3106.2,3105.2,0.3708679]
[1732066880001,0.7667,3106.2,3105.8,0.09260737]
[1732066880211,0.7667,3106.2,3105.2,0.70259591]
[1732066880411,0.7667,3106.2,3105.9,0.09260737]
[1732066880589,0.7667,3106.2,3105.2,0.70259591]
[1732066880975,0.7667,3106.2,3105.4,0.3208]
[1732066881182,0.7667,3106.2,3105.6,3.0]
[1732066881383,0.7667,3106.2,3105.7,0.30500561]
[1732066881587,0.7667,3106.2,3105.7,0.09260737]
[1732066882399,0.7667,3106.2,3105.6,3.0]
[1732066882602,0.7667,3106.2,3105.8,0.09260737]
[1732066882796,0.7667,3106.2,3105.7,0.3208]
[1732066883033,0.7667,3106.2,3105.9,0.09260737]
[1732066883190,0.7667,3106.2,3105.8,0.33208]
[1732066883685,0.7667,3106.2,3105.9,0.09260737]
[1732066884730,0.7667,3106.2,3106.0,0.09260737]
[1732066885231,0.7667,3106.2,3105.3,0.37085609]
[1732066885530,0.7667,3106.2,3105.6,3.0]
[1732066885736,0.7667,3106.2,3105.7,0.3]
[1732066886095,0.7667,3106.2,3105.8,0.0925833]
[1732066886290,0.7667,3106.2,3105.5,0.3208]
[1732066886495,0.7667,3106.2,3105.6,0.0925833]
[1732066886696,0.7667,3106.2,3105.7,0.8094]
[1732066887129,0.7667,3106.2,3105.8,0.0925833]
[1732066887496,0.7667,3106.2,3105.7,0.8094]
[1732066887832,0.7667,3106.2,3105.8,0.0925833]
[1732066888126,0.7667,3106.2,3105.5,1.1302]
[1732066888336,0.7667,3106.2,3105.6,3.0925833]
[1732066888543,0.7667,3106.2,3105.7,0.42227833]
[1732066889102,0.7667,3106.2,3105.8,0.0925833]
[1732066889406,0.7667,3106.2,3105.4,0.3208]
[1732066889967,0.7667,3106.2,3105.5,3.09257128]
[1732066890240,0.7952,3106.0,3105.5,0.09257128]
[1732066890396,0.7952,3105.8,3105.5,0.09257128]
[1732066890598,0.7952,3105.8,3104.8,0.70292463]
[1732066890819,0.7952,3105.8,3105.6,0.09257128]
[1732066891026,0.7952,3105.8,3104.8,0.7829349]
[1732066891399,0.7952,3105.8,3105.0,0.3211]
[1732066891728,0.7952,3105.8,3105.3,3.0]
[1732066892043,0.7952,3106.7,3105.6,3.0]
[1732066892340,1.286363,3107.2,3105.7,0.09260221]
[1732066892341,0.7952,3106.5,3105.7,0.09260221]
[1732066893349,0.7952,3106.5,3105.6,3.0]
[1732066893562,0.7952,3106.3,3105.8,0.09257557]
[1732066893856,0.7952,3106.3,3105.6,3.0]
[1732066894042,0.7952,3106.3,3105.9,0.09257471]
[1732066894248,0.7952,3106.3,3105.6,3.0]
[1732066894424,0.0804943,3106.2,3106.0,0.09257471]
[1732066894625,0.7952,3106.1,3105.6,3.0]
[1732066895560,0.7952,3106.1,3105.0,1.59365703]
[1732066896318,0.7952,3106.1,3105.1,3.0]
[1732066896552,0.7952,3106.1,3105.2,0.83054276]
[1732066896868,0.7952,3106.1,3105.2,0.37117706]
[1732066897367,0.7952,3105.9,3105.2,0.3211]
[1732066897551,0.87570024,3105.8,3104.8,0.37119145]
[1732066898552,0.7952,3105.8,3104.8,0.37119145]
[1732066898930,3.21886,3106.7,3104.6,0.3211]
[1732066898931,0.87570027,3105.7,3104.6,0.3211]
[1732066899170,0.7861,3105.5,3104.1,1.14112801]
[1732066899338,0.86661293,3105.4,3104.1,1.14112801]
[1732066899523,0.86661293,3105.4,3104.1,1.19125001]
[1732066899925,0.86661293,3105.4,3104.2,0.3211]
[1732066900160,0.86661293,3105.4,3104.3,0.05012196]
[1732066900379,0.86661293,3105.4,3104.5,0.3211]
[1732066900380,0.7861,3105.4,3104.5,0.3211]
[1732066900695,0.7861,3105.4,3104.9,3.0]
[1732066900866,0.7861,3105.4,3105.0,0.3]
[1732066901072,0.7861,3105.4,3104.9,3.0]
[1732066901269,0.7861,3105.4,3104.7,0.3211]
[1732066901602,0.7861,3105.4,3105.0,3.0]
[1732066901756,0.7861,3105.4,3105.1,0.3]
[1732066903091,0.7861,3105.4,3105.0,3.0]
[1732066903295,0.7861,3105.4,3104.7,0.3211]
[1732066903693,0.7861,3105.4,3105.0,3.0]
[1732066903916,0.7861,3105.4,3104.7,0.3211]
[1732066904113,0.7861,3105.4,3105.0,3.0]
[1732066904813,0.7861,3105.4,3104.6,0.3211]
[1732066904975,0.7861,3105.4,3105.0,3.0]
[1732066906319,0.7861,3105.4,3104.6,0.3211]
[1732066907614,0.7861,3105.4,3105.0,3.0]
[1732066908514,0.7861,3105.4,3105.1,0.08954592]
[1732066908812,0.7861,3105.4,3105.0,3.0]
[1732066909112,0.7861,3105.4,3105.0,3.3]
[1732066909289,0.7861,3105.4,3105.1,0.08954592]
[1732066910838,0.7861,3105.4,3105.0,3.0]
[1732066911338,0.7861,3105.4,3105.1,0.08959058]
[1732066911934,0.7861,3105.4,3104.6,0.3211]
[1732066912241,0.7861,3105.4,3105.0,3.0]
[1732066912533,0.7861,3105.4,3105.1,0.3]
[1732066912733,0.7861,3105.4,3105.2,0.08959058]
[1732066913327,0.7861,3105.4,3105.0,3.0]
[1732066913632,0.7861,3105.4,3105.1,0.08959058]
[1732066914021,0.7861,3105.4,3105.0,3.0]
[1732066914222,0.7861,3105.4,3105.2,0.08959058]
[1732066914399,0.7861,3105.4,3105.1,0.37718]
[1732066914599,0.7518,3106.2,3105.3,0.08959058]
[1732066914812,0.7518,3106.2,3105.1,0.37718]
[1732066914999,0.7518,3106.2,3105.4,0.08959058]
[1732066915211,0.7518,3106.2,3105.0,3.0]
[1732066915421,0.7518,3106.2,3105.5,0.08959058]
[1732066915757,0.7518,3106.2,3105.6,0.08958371]
[1732066916115,0.7518,3106.2,3105.3,3.3211]
[1732066916335,0.7518,3106.2,3105.4,3.42169371]
[1732066916637,3.21854,3107.0,3105.4,3.42169371]
[1732066916638,0.7518,3106.0,3105.4,3.42169371]
[1732066916840,0.7518,3106.0,3105.4,3.08958371]
[1732066917149,0.7518,3106.0,3105.4,0.08958371]
[1732066917648,0.7518,3106.0,3105.4,3.08958371]
[1732066918107,0.7518,3106.0,3105.4,0.08958371]
[1732066918310,0.7518,3106.0,3105.0,0.37117608]
[1732066918549,0.7518,3106.0,3105.2,0.3211]
[1732066918702,0.7518,3106.0,3105.4,3.0]
[1732066918907,0.7518,3106.0,3105.5,0.3]
[1732066919104,0.7518,3106.0,3105.6,0.08957597]
[1732066919548,0.7518,3106.0,3105.2,0.05007597]
[1732066919721,0.7518,3106.0,3105.7,0.08957597]
[1732066919921,0.7518,3106.0,3105.4,3.0]
[1732066920241,0.7518,3106.0,3105.5,0.38957597]
[1732066920448,0.7518,3106.0,3105.5,0.08957597]
[1732066921351,0.7518,3106.0,3105.4,3.0]
[1732066921352,0.7518,3106.0,3105.6,0.08957597]
[1732066921714,0.7518,3106.0,3105.4,3.0]
[1732066921914,0.7518,3106.0,3105.5,0.38957597]
[1732066922155,0.7518,3106.0,3105.5,0.08957597]
[1732066922514,0.7518,3106.0,3105.1,0.05007596]
[1732066922832,0.7518,3106.0,3105.3,0.3211]
[1732066923030,0.7518,3106.0,3105.3,0.37116717]
[1732066923238,0.7518,3106.0,3105.4,0.08955191]
[1732066923936,0.7518,3106.0,3105.4,3.08955191]
[1732066924450,0.08049396,3105.9,3105.4,3.08955191]
[1732066924760,3.21875,3106.8,3105.4,0.08955191]
[1732066924761,0.7518,3105.8,3105.4,0.08955191]
[1732066924919,0.7518,3105.8,3105.4,3.08955191]
[1732066925412,0.7518,3105.8,3105.5,0.05008709]
[1732066925612,0.7518,3105.8,3105.4,0.08955191]
[1732066925861,0.7518,3105.8,3105.0,0.3211]
[1732066926017,0.7518,3105.8,3105.5,0.08955191]
[1732066926222,0.7518,3105.8,3105.4,3.0]
[1732066926439,0.7518,3105.8,3105.6,0.08955191]
[1732066926676,0.7518,3105.8,3105.4,3.3]
[1732066926894,0.7518,3105.8,3105.7,0.08955191]
[1732066927040,0.7518,3105.8,3105.4,0.3]
[1732066927241,0.7518,3105.8,3105.7,0.08955191]
[1732066927469,0.7518,3105.8,3105.1,0.05008531]
[1732066927679,0.7518,3105.8,3105.7,0.08955191]
[1732066927862,0.7518,3105.8,3105.4,3.0]
[1732066928042,0.7518,3105.8,3105.7,0.08856858]
[1732066928243,0.7518,3105.8,3105.4,3.0]
[1732066928483,0.7518,3105.8,3105.7,0.08856858]
[1732066928676,0.7518,3105.8,3105.4,3.0]
[1732066928888,0.7518,3105.8,3105.7,0.08856858]
[1732066929087,0.7518,3105.8,3105.2,3.0]
[1732066929252,0.7518,3105.8,3105.7,0.08856858]
[1732066929574,0.7518,3105.8,3104.7,0.3211]
[1732066930117,0.7518,3105.8,3104.8,0.40968061]
[1732066931891,0.7518,3105.8,3105.0,3.0]
[1732066932184,0.7518,3105.8,3105.1,0.47448299]
[1732066932787,0.7518,3105.8,3105.1,0.08858147]
[1732066933153,0.08050191,3105.7,3104.9,3.0]
[1732066933366,0.8047,3106.1,3105.2,0.08858147]
[1732066933572,0.8047,3105.9,3104.9,3.0]
[1732066934107,0.8047,3105.9,3105.0,0.08858147]
[1732066934465,0.8047,3105.9,3104.9,3.0]
[1732066934661,0.8047,3105.9,3105.1,0.08864078]
[1732066934911,0.8047,3105.9,3104.9,0.05010971]
[1732066935261,0.8047,3105.9,3104.9,3.0]
[1732066935468,0.8047,3105.9,3104.8,0.35839468]
[1732066935782,0.8047,3105.9,3105.0,3.0]
[1732066936504,0.8047,3105.9,3105.1,0.08864078]
[1732066936870,0.8047,3105.9,3104.8,0.35839468]
[1732066937193,0.8047,3105.9,3104.9,0.08864078]
[1732066937582,0.8047,3105.9,3105.0,3.0]
[1732066937982,0.8047,3105.9,3105.0,3.34470355]
[1732066938430,0.8047,3105.9,3105.1,0.08864078]
[1732066939670,0.8047,3105.9,3104.9,0.8089]
[1732066940165,0.8047,3105.9,3105.0,0.08862874]
[1732066942931,0.8047,3105.9,3105.0,3.08862874]
[1732066943100,0.8047,3105.7,3105.0,3.08862874]
[1732066943434,0.8047,3105.5,3105.0,3.08862874]
[1732066943613,3.541126,3106.4,3105.0,3.08862874]
[1732066943614,0.08050781,3105.4,3105.0,0.08862874]
[1732066943929,0.8047,3105.8,3104.7,0.3211]
[1732066944140,0.7857,3105.6,3104.4,0.3211]
[1732066944428,0.7857,3105.6,3104.5,0.05013302]
[1732066944603,0.7857,3105.6,3104.6,0.3211]
[1732066944787,0.7857,3105.6,3104.6,0.4825659]
[1732066945237,0.7857,3105.6,3104.8,3.0]
[1732066945812,0.7857,3105.6,3104.9,0.08865107]
[1732066946621,0.7857,3105.6,3104.8,3.0]
[1732066946938,0.7857,3105.6,3104.8,3.34825659]
[1732066947145,0.7857,3105.6,3104.9,0.08864763]
[1732066948731,0.7857,3105.6,3105.0,0.08864763]
[1732066948939,0.7857,3105.6,3104.8,3.0]
[1732066949139,0.7857,3105.6,3104.9,0.38864763]
[1732066949336,0.7857,3105.6,3104.9,0.08864763]
[1732066950001,0.7857,3105.6,3105.0,3.0]
[1732066950240,0.7857,3105.6,3104.9,1.24344231]
[1732066950437,0.7857,3105.6,3104.9,1.15479468]
[1732066950647,0.7857,3105.6,3105.0,0.08864763]
[1732066951201,0.86620187,3105.5,3105.0,0.08864763]
[1732066951513,0.86620187,3105.5,3104.1,0.05009538]
[1732066951514,0.7857,3105.5,3104.1,0.3211]
[1732066951711,0.7857,3105.3,3104.3,0.3211]
[1732066951942,0.7857,3105.3,3104.2,0.08567456]
[1732066951943,0.7857,3105.1,3104.0,1.15479468]
[1732066952152,0.7857,3105.1,3104.6,3.0]
[1732066952436,0.7857,3105.1,3104.1,0.40854288]
[1732066952691,0.7857,3105.1,3104.7,0.08567456]
[1732066952841,0.7857,3104.9,3103.7,0.3211]
[1732066953010,0.7857,3104.9,3104.8,0.08567456]
[1732066953210,0.7857,3104.9,3103.7,0.72964972]
[1732066953400,3.22005,3105.6,3103.4,0.3211]
[1732066953401,0.7857,3104.7,3103.4,0.3211]
[1732066953607,0.7857,3104.7,3103.8,0.08567456]
[1732066953809,0.7857,3104.7,3103.4,0.05018848]
[1732066954223,0.7857,3104.7,3103.5,0.08462227]
[1732066955054,0.7857,3104.5,3103.5,0.08462227]
[1732066955207,0.7857,3104.5,3103.7,3.0]
[1732066955531,0.7857,3104.5,3103.8,0.08465581]
[1732066955710,0.7857,3104.3,3103.3,0.3211]
[1732066955912,0.86624591,3104.2,3103.4,0.08468505]
[1732066956766,0.7857,3104.2,3103.4,0.08468505]
[1732066957464,0.7857,3104.2,3103.4,0.40578505]
[1732066957613,0.7857,3104.2,3103.4,3.08468505]
[1732066957813,0.7857,3104.2,3103.5,0.30846851]
[1732066958039,0.7857,3104.2,3103.4,3.08468505]
[1732066958235,0.7857,3104.2,3103.6,0.08469452]
[1732066958435,0.7857,3104.2,3103.4,3.0]
[1732066958644,0.7857,3104.2,3103.7,0.08469452]
[1732066958826,0.7857,3104.2,3103.4,3.0]
[1732066959045,0.7857,3104.2,3103.8,0.08469452]
[1732066959220,0.7857,3104.2,3103.5,0.3]
[1732066959419,0.7857,3104.2,3103.9,0.08469452]
[1732066959754,0.7857,3104.2,3104.0,0.08469452]
[1732066959964,0.7857,3104.2,3103.5,3.0]
[1732066960261,0.7857,3104.2,3103.6,0.38971278]
[1732066961716,0.7857,3104.2,3103.6,0.0846928]
[1732066962616,0.7857,3104.2,3103.5,3.0]
[1732066962813,0.7857,3104.2,3103.7,0.08478823]
[1732066963035,0.7857,3104.2,3103.6,0.08479425]
[1732066963230,0.7857,3104.2,3103.7,0.30847942]
[1732066963457,0.7857,3104.2,3103.7,0.39327367]
[1732066963660,0.7857,3104.2,3103.7,0.08479425]
[1732066964071,0.7857,3104.2,3103.3,0.05018391]
[1732066964072,0.7857,3104.2,3103.8,3.0]
[1732066964221,0.7857,3104.2,3103.8,0.08479425]
[1732066964427,0.7857,3104.2,3103.8,3.0]
[1732066964669,0.7857,3104.2,3103.9,0.38479425]
[1732066964837,0.7857,3104.2,3103.9,0.08479425]
[1732066965218,0.8072,3104.5,3104.0,3.0]
[1732066965568,0.8072,3104.5,3104.1,0.08477361]
[1732066966365,0.8072,3104.5,3103.8,0.05016529]
[1732066966366,0.8072,3104.5,3104.0,3.0]
[1732066966564,0.8072,3104.5,3104.1,0.38477361]
[1732066967357,0.8072,3104.5,3104.1,0.08477361]
[1732066968058,0.8072,3104.5,3104.0,3.0]
[1732066968260,0.8072,3104.5,3104.2,0.08477361]
[1732066968460,0.8072,3104.5,3104.0,3.0]
[1732066968630,0.8072,3104.5,3104.3,0.08477361]
[1732066968972,0.8072,3104.5,3104.4,0.08475899]
[1732066969273,0.8072,3104.5,3104.2,3.0]
[1732066969274,0.8072,3104.5,3104.3,0.3211]
[1732066969474,0.8072,3104.5,3104.4,0.08475899]
[1732066970170,0.8072,3104.5,3104.4,0.08475383]
[1732066970371,0.8072,3104.5,3104.2,3.0]
[1732066970530,0.8072,3104.5,3104.3,0.08475383]
[1732066970725,0.8072,3104.5,3103.4,0.3211]
[1732066970926,0.8072,3104.5,3104.0,3.0]
[1732066971127,0.8072,3104.5,3103.5,0.35839468]
[1732066971364,0.8072,3104.5,3103.6,0.08475383]
[1732066972726,0.8072,3104.3,3103.6,0.08475383]
[1732066972921,3.22071,3104.9,3103.7,3.0]
[1732066972922,0.8072,3104.1,3103.7,3.0]
[1732066973168,0.8072,3104.1,3103.8,0.08476931]
[1732066973351,0.8072,3104.1,3103.3,0.3211]
[1732066973555,0.8072,3104.1,3103.4,0.08476931]
[1732066973928,0.8072,3104.1,3103.4,0.40586931]
[1732066975630,0.8072,3104.1,3103.4,3.40586931]
[1732066975832,0.8072,3104.1,3103.4,3.78229571]
[1732066976132,0.8072,3104.1,3103.4,0.78229571]
[1732066976334,0.8072,3104.1,3103.4,3.40586931]
[1732066976529,0.8072,3104.1,3103.4,0.40586931]
[1732066976925,0.8072,3104.1,3103.4,3.40586931]
[1732066977125,0.8072,3104.1,3103.4,0.40586931]
[1732066977435,0.8072,3104.1,3103.4,3.40586931]
[1732066977780,0.8072,3104.1,3103.4,0.40586931]
[1732066977978,0.8072,3104.1,3103.4,3.40586931]
[1732066978658,0.8072,3104.1,3103.4,0.40586931]
[1732066978828,0.8072,3104.1,3103.4,3.40586931]
[1732066979236,0.8072,3104.1,3103.4,0.78229571]
[1732066979464,0.8072,3104.1,3103.4,3.40586931]
[1732066980181,0.8072,3104.1,3103.4,0.40586931]
[1732066980536,0.8072,3104.1,3103.4,3.40586931]
[1732066982347,0.8072,3104.1,3103.4,0.40586931]
[1732066982743,0.8072,3104.1,3103.5,0.776]
[1732066982947,0.8072,3104.1,3103.6,0.50299752]
[1732066983271,0.8072,3104.1,3103.6,0.08481059]
[1732066985056,0.8072,3104.1,3103.6,0.40591059]
[1732066985256,0.8072,3105.2,3103.9,3.0]
[1732066985495,0.88772953,3105.1,3103.6,0.81448594]
[1732066985653,0.88772953,3105.1,3104.0,0.08480285]
[1732066985847,0.88772953,3105.1,3103.7,0.05015615]
[1732066986345,0.88772953,3105.1,3103.9,0.3211]
[1732066986542,0.88772953,3105.1,3103.9,3.3211]
[1732066986846,0.0805272,3105.0,3104.0,0.41688705]
[1732066987048,0.8072,3105.3,3104.0,0.41688705]
[1732066987341,0.323993,3105.5,3104.1,0.37881389]
[1732066987342,0.8072,3105.1,3104.1,0.37881389]
[1732066987583,0.8072,3105.1,3104.2,0.08477619]
[1732066987954,0.8072,3105.1,3104.1,3.0]
[1732066988290,0.8072,3105.1,3104.3,3.0]
[1732066988784,0.8072,3105.1,3104.4,0.08476931]
[1732066988958,0.8072,3105.1,3104.1,0.72964647]
[1732066989143,0.8072,3105.1,3104.2,0.08476587]
[1732066989986,0.8072,3105.1,3104.4,3.0]
[1732066990198,0.8072,3105.1,3104.1,0.72964647]
[1732066990349,0.8072,3105.1,3104.5,3.08476587]
[1732066990693,0.8072,3105.1,3104.6,0.30847659]
[1732066990997,0.8072,3105.1,3104.5,0.95759825]
[1732066991145,0.8072,3105.1,3104.7,0.08476587]
[1732066991494,0.8072,3105.1,3104.8,3.0]
[1732066991702,0.08051729,3106.1,3104.7,0.08476587]
[1732066991703,0.8209,3105.3,3104.7,0.08476587]
[1732066991846,0.8209,3105.3,3104.8,3.0]
[1732066992052,0.8209,3105.3,3104.9,0.30847659]
[1732066992349,0.8209,3105.3,3105.0,0.08476587]
[1732066992771,0.8209,3105.3,3105.1,0.08476587]
[1732066992985,0.8209,3105.3,3104.8,3.0]
[1732066993193,0.8209,3105.3,3104.9,0.3]
[1732066993398,0.8209,3105.3,3104.9,0.08476587]
[1732066994989,0.8209,3105.3,3104.8,3.0]
[1732066995492,0.8209,3105.3,3104.9,0.08476587]
[1732066996753,0.8209,3105.3,3105.0,0.08476587]
[1732066996949,0.8209,3105.3,3104.8,3.0]
[1732066997154,0.8209,3105.3,3104.8,0.3]
[1732066997374,0.8209,3105.3,3104.9,0.08476587]
[1732066997843,0.8209,3105.3,3105.0,0.08476587]
[1732066998153,0.8209,3105.3,3105.1,0.08476587]
[1732066998352,0.8209,3105.3,3104.2,0.90485362]
[1732066998780,0.8209,3105.3,3104.3,0.08476587]
[1732066998968,0.8209,3105.3,3104.8,3.0]
[1732066999173,3.21957,3106.0,3104.3,0.08476587]
[1732066999174,0.90141389,3105.2,3104.3,0.08476587]
[1732066999375,0.90141389,3105.2,3104.9,0.08467557]
[1732066999572,0.90141389,3105.2,3103.8,0.05014789]
[1732066999773,0.90141389,3105.2,3103.9,0.08462483]
[1732067001056,0.90141389,3105.2,3104.0,3.0]
[1732067001805,0.90141389,3105.2,3104.1,0.08462483]
[1732067002468,0.8209,3105.1,3103.7,0.35839468]
[1732067002794,0.8209,3104.9,3104.2,0.08462483]
[1732067002989,0.8209,3104.7,3103.8,0.3211]
[1732067003207,0.33009739,3105.1,3103.8,0.3211]
[1732067003208,0.8209,3104.5,3104.3,0.08462483]
[1732067003361,0.8209,3104.5,3103.8,0.3211]
[1732067003560,0.08053249,3104.4,3103.4,0.8227]
[1732067003799,0.8209,3104.3,3103.9,0.08462483]
[1732067003994,0.8209,3104.3,3104.0,0.08462483]
[1732067004266,0.8209,3104.3,3103.4,1.50219468]
[1732067004267,0.8209,3104.3,3103.7,3.0]
[1732067004461,0.8209,3104.3,3104.1,0.08462483]
[1732067004685,0.8209,3104.3,3103.4,1.63371806]
[1732067004901,0.8209,3104.3,3104.2,0.08462483]
[1732067005100,0.8209,3104.3,3103.4,1.58354049]
[1732067005299,0.8209,3104.3,3104.2,0.08462483]
[1732067005532,0.8209,3104.3,3103.4,1.58354049]
[1732067005831,0.8209,3104.3,3103.5,0.40572483]
[1732067006133,0.8209,3104.3,3103.5,0.08462483]
[1732067006332,0.7938,3104.1,3103.5,0.08462483]
[1732067009026,0.7938,3104.1,3103.6,0.08471513]
[1732067009218,0.7938,3104.1,3103.1,0.05019614]
[1732067009419,0.7938,3104.1,3103.7,0.08471513]
[1732067009733,0.7938,3104.1,3103.1,0.05019614]
[1732067009939,0.7938,3104.1,3103.8,0.08471513]
[1732067010234,0.7938,3104.1,3103.1,0.05019614]
[1732067010448,0.7938,3104.1,3103.9,0.08482436]
[1732067010740,0.7938,3104.1,3103.2,0.42843594]
[1732067011044,0.7938,3104.1,3103.3,0.08482436]
[1732067011244,0.7938,3104.1,3103.0,1.20389331]
[1732067011404,0.7938,3104.1,3103.4,0.08482436]
[1732067011608,0.7938,3104.1,3103.0,1.20389331]
[1732067011805,0.7938,3104.1,3103.1,0.08482436]
[1732067012207,3.542899,3104.8,3103.1,0.08482436]
[1732067012208,0.87434928,3104.0,3103.1,0.08482436]
[1732067012409,0.87434928,3104.0,3102.5,0.7953]
[1732067012631,0.7938,3103.8,3102.6,0.08482436]
[1732067012836,0.7938,3103.6,3102.6,0.08482436]
[1732067013058,0.7938,3103.6,3102.2,0.7953]
[1732067013059,0.87436819,3103.5,3102.2,0.84555455]
[1732067013274,0.87436819,3103.5,3102.7,0.08482436]
[1732067013431,0.87436819,3103.5,3102.2,0.35839468]
[1732067013432,0.87436819,3103.5,3102.2,0.40864949]
[1732067013633,0.7938,3103.5,3102.2,0.05025481]
[1732067013852,0.7938,3103.5,3102.3,0.35839468]
[1732067014075,0.7938,3103.5,3102.3,3.35839468]
[1732067014393,0.7938,3103.5,3102.4,0.08482436]
[1732067015901,0.7938,3103.3,3102.4,0.08482436]